{"text_format":"1","workbook":"xlsx","n_sheets":3,"sheets":["Temp","Data","Summary"],"not_rendered":{"charts":1,"images":0,"macros":1,"external_links":0,"defined_names":0,"comments":1,"pivot_tables":2},"unopened":[],"bounds":{"document_bytes":16777216,"sheet_cells":100000,"rows_first":2000,"rows_last":500,"rows_between":2000,"halvings":0,"cell_chars":16384,"cell_head_chars":4096},"cells_cut":0,"cells_raw":0,"read":"whole","date_system":"1900"}

{"sheet":"Temp","index":0,"n_rows":343,"n_cols":5,"rows_kept":343,"cut":false,"hidden":false,"merged":[]}
["Super","Emp","Class","Status","Count"]
["Johnson","Diaz","Admin","Plan",1]
["Johnson","Diaz","Admin","Regis",1]
["Johnson","Diaz","Admin","Attend",1]
["Johnson","Diaz","Sales","Plan",0]
["Johnson","Diaz","Sales","Regis",0]
["Johnson","Diaz","Sales","Attend",0]
["Johnson","Diaz","Prod","Plan",1]
["Johnson","Diaz","Prod","Regis",1]
["Johnson","Diaz","Prod","Attend",0]
["Johnson","Bryant","Admin","Plan",1]
["Johnson","Bryant","Admin","Regis",1]
["Johnson","Bryant","Admin","Attend",1]
["Johnson","Bryant","Sales","Plan",1]
["Johnson","Bryant","Sales","Regis",1]
["Johnson","Bryant","Sales","Attend",1]
["Johnson","Bryant","Prod","Plan",0]
["Johnson","Bryant","Prod","Regis",0]
["Johnson","Bryant","Prod","Attend",0]
["Johnson","Harris","Admin","Plan",1]
["Johnson","Harris","Admin","Regis",1]
["Johnson","Harris","Admin","Attend",0]
["Johnson","Harris","Sales","Plan",1]
["Johnson","Harris","Sales","Regis",0]
["Johnson","Harris","Sales","Attend",0]
["Johnson","Harris","Prod","Plan",1]
["Johnson","Harris","Prod","Regis",1]
["Johnson","Harris","Prod","Attend",0]
["Johnson","Thomas","Admin","Plan",1]
["Johnson","Thomas","Admin","Regis",0]
["Johnson","Thomas","Admin","Attend",0]
["Johnson","Thomas","Sales","Plan",1]
["Johnson","Thomas","Sales","Regis",1]
["Johnson","Thomas","Sales","Attend",0]
["Johnson","Thomas","Prod","Plan",1]
["Johnson","Thomas","Prod","Regis",1]
["Johnson","Thomas","Prod","Attend",1]
["Johnson","Hicks","Admin","Plan",0]
["Johnson","Hicks","Admin","Regis",0]
["Johnson","Hicks","Admin","Attend",0]
["Johnson","Hicks","Sales","Plan",1]
["Johnson","Hicks","Sales","Regis",1]
["Johnson","Hicks","Sales","Attend",0]
["Johnson","Hicks","Prod","Plan",1]
["Johnson","Hicks","Prod","Regis",1]
["Johnson","Hicks","Prod","Attend",0]
["Johnson","Murray","Admin","Plan",1]
["Johnson","Murray","Admin","Regis",1]
["Johnson","Murray","Admin","Attend",1]
["Johnson","Murray","Sales","Plan",1]
["Johnson","Murray","Sales","Regis",1]
["Johnson","Murray","Sales","Attend",0]
["Johnson","Murray","Prod","Plan",1]
["Johnson","Murray","Prod","Regis",1]
["Johnson","Murray","Prod","Attend",1]
["Johnson","Foster","Admin","Plan",1]
["Johnson","Foster","Admin","Regis",0]
["Johnson","Foster","Admin","Attend",0]
["Johnson","Foster","Sales","Plan",0]
["Johnson","Foster","Sales","Regis",0]
["Johnson","Foster","Sales","Attend",0]
["Johnson","Foster","Prod","Plan",1]
["Johnson","Foster","Prod","Regis",1]
["Johnson","Foster","Prod","Attend",1]
["Johnson","Nelson","Admin","Plan",1]
["Johnson","Nelson","Admin","Regis",0]
["Johnson","Nelson","Admin","Attend",0]
["Johnson","Nelson","Sales","Plan",1]
["Johnson","Nelson","Sales","Regis",0]
["Johnson","Nelson","Sales","Attend",0]
["Johnson","Nelson","Prod","Plan",0]
["Johnson","Nelson","Prod","Regis",0]
["Johnson","Nelson","Prod","Attend",0]
["Johnson","Porter","Admin","Plan",1]
["Johnson","Porter","Admin","Regis",1]
["Johnson","Porter","Admin","Attend",1]
["Johnson","Porter","Sales","Plan",0]
["Johnson","Porter","Sales","Regis",0]
["Johnson","Porter","Sales","Attend",0]
["Johnson","Porter","Prod","Plan",1]
["Johnson","Porter","Prod","Regis",1]
["Johnson","Porter","Prod","Attend",0]
["Johnson","Washington","Admin","Plan",1]
["Johnson","Washington","Admin","Regis",1]
["Johnson","Washington","Admin","Attend",1]
["Johnson","Washington","Sales","Plan",0]
["Johnson","Washington","Sales","Regis",0]
["Johnson","Washington","Sales","Attend",0]
["Johnson","Washington","Prod","Plan",0]
["Johnson","Washington","Prod","Regis",0]
["Johnson","Washington","Prod","Attend",0]
["Johnson","Parker","Admin","Plan",1]
["Johnson","Parker","Admin","Regis",1]
["Johnson","Parker","Admin","Attend",1]
["Johnson","Parker","Sales","Plan",1]
["Johnson","Parker","Sales","Regis",1]
["Johnson","Parker","Sales","Attend",0]
["Johnson","Parker","Prod","Plan",1]
["Johnson","Parker","Prod","Regis",0]
["Johnson","Parker","Prod","Attend",0]
["Johnson","Lopez","Admin","Plan",0]
["Johnson","Lopez","Admin","Regis",0]
["Johnson","Lopez","Admin","Attend",0]
["Johnson","Lopez","Sales","Plan",1]
["Johnson","Lopez","Sales","Regis",1]
["Johnson","Lopez","Sales","Attend",1]
["Johnson","Lopez","Prod","Plan",1]
["Johnson","Lopez","Prod","Regis",1]
["Johnson","Lopez","Prod","Attend",1]
["Johnson","Roberts","Admin","Plan",1]
["Johnson","Roberts","Admin","Regis",1]
["Johnson","Roberts","Admin","Attend",0]
["Johnson","Roberts","Sales","Plan",1]
["Johnson","Roberts","Sales","Regis",0]
["Johnson","Roberts","Sales","Attend",0]
["Johnson","Roberts","Prod","Plan",1]
["Johnson","Roberts","Prod","Regis",1]
["Johnson","Roberts","Prod","Attend",1]
["Johnson","Powell","Admin","Plan",1]
["Johnson","Powell","Admin","Regis",0]
["Johnson","Powell","Admin","Attend",0]
["Johnson","Powell","Sales","Plan",0]
["Johnson","Powell","Sales","Regis",0]
["Johnson","Powell","Sales","Attend",0]
["Johnson","Powell","Prod","Plan",1]
["Johnson","Powell","Prod","Regis",1]
["Johnson","Powell","Prod","Attend",0]
["Johnson","Mason","Admin","Plan",0]
["Johnson","Mason","Admin","Regis",0]
["Johnson","Mason","Admin","Attend",0]
["Johnson","Mason","Sales","Plan",1]
["Johnson","Mason","Sales","Regis",0]
["Johnson","Mason","Sales","Attend",0]
["Johnson","Mason","Prod","Plan",1]
["Johnson","Mason","Prod","Regis",1]
["Johnson","Mason","Prod","Attend",0]
["Smith","Gonzales","Admin","Plan",1]
["Smith","Gonzales","Admin","Regis",1]
["Smith","Gonzales","Admin","Attend",1]
["Smith","Gonzales","Sales","Plan",1]
["Smith","Gonzales","Sales","Regis",0]
["Smith","Gonzales","Sales","Attend",0]
["Smith","Gonzales","Prod","Plan",0]
["Smith","Gonzales","Prod","Regis",0]
["Smith","Gonzales","Prod","Attend",0]
["Smith","Ward","Admin","Plan",1]
["Smith","Ward","Admin","Regis",0]
["Smith","Ward","Admin","Attend",0]
["Smith","Ward","Sales","Plan",1]
["Smith","Ward","Sales","Regis",1]
["Smith","Ward","Sales","Attend",0]
["Smith","Ward","Prod","Plan",1]
["Smith","Ward","Prod","Regis",1]
["Smith","Ward","Prod","Attend",0]
["Smith","Mitchell","Admin","Plan",1]
["Smith","Mitchell","Admin","Regis",1]
["Smith","Mitchell","Admin","Attend",0]
["Smith","Mitchell","Sales","Plan",0]
["Smith","Mitchell","Sales","Regis",0]
["Smith","Mitchell","Sales","Attend",0]
["Smith","Mitchell","Prod","Plan",1]
["Smith","Mitchell","Prod","Regis",1]
["Smith","Mitchell","Prod","Attend",0]
["Smith","Miller","Admin","Plan",1]
["Smith","Miller","Admin","Regis",0]
["Smith","Miller","Admin","Attend",0]
["Smith","Miller","Sales","Plan",0]
["Smith","Miller","Sales","Regis",0]
["Smith","Miller","Sales","Attend",0]
["Smith","Miller","Prod","Plan",1]
["Smith","Miller","Prod","Regis",1]
["Smith","Miller","Prod","Attend",0]
["Smith","Carter","Admin","Plan",0]
["Smith","Carter","Admin","Regis",0]
["Smith","Carter","Admin","Attend",0]
["Smith","Carter","Sales","Plan",1]
["Smith","Carter","Sales","Regis",1]
["Smith","Carter","Sales","Attend",1]
["Smith","Carter","Prod","Plan",0]
["Smith","Carter","Prod","Regis",0]
["Smith","Carter","Prod","Attend",0]
["Smith","Turner","Admin","Plan",1]
["Smith","Turner","Admin","Regis",1]
["Smith","Turner","Admin","Attend",0]
["Smith","Turner","Sales","Plan",0]
["Smith","Turner","Sales","Regis",0]
["Smith","Turner","Sales","Attend",0]
["Smith","Turner","Prod","Plan",0]
["Smith","Turner","Prod","Regis",0]
["Smith","Turner","Prod","Attend",0]
["Smith","Porter","Admin","Plan",1]
["Smith","Porter","Admin","Regis",0]
["Smith","Porter","Admin","Attend",0]
["Smith","Porter","Sales","Plan",1]
["Smith","Porter","Sales","Regis",1]
["Smith","Porter","Sales","Attend",0]
["Smith","Porter","Prod","Plan",0]
["Smith","Porter","Prod","Regis",0]
["Smith","Porter","Prod","Attend",0]
["Smith","Carter","Admin","Plan",1]
["Smith","Carter","Admin","Regis",1]
["Smith","Carter","Admin","Attend",1]
["Smith","Carter","Sales","Plan",1]
["Smith","Carter","Sales","Regis",1]
["Smith","Carter","Sales","Attend",1]
["Smith","Carter","Prod","Plan",1]
["Smith","Carter","Prod","Regis",1]
["Smith","Carter","Prod","Attend",1]
["Smith","Boyd","Admin","Plan",1]
["Smith","Boyd","Admin","Regis",1]
["Smith","Boyd","Admin","Attend",1]
["Smith","Boyd","Sales","Plan",0]
["Smith","Boyd","Sales","Regis",0]
["Smith","Boyd","Sales","Attend",0]
["Smith","Boyd","Prod","Plan",0]
["Smith","Boyd","Prod","Regis",0]
["Smith","Boyd","Prod","Attend",0]
["Smith","Flores","Admin","Plan",1]
["Smith","Flores","Admin","Regis",1]
["Smith","Flores","Admin","Attend",1]
["Smith","Flores","Sales","Plan",0]
["Smith","Flores","Sales","Regis",0]
["Smith","Flores","Sales","Attend",0]
["Smith","Flores","Prod","Plan",1]
["Smith","Flores","Prod","Regis",1]
["Smith","Flores","Prod","Attend",0]
["Smith","Ross","Admin","Plan",1]
["Smith","Ross","Admin","Regis",1]
["Smith","Ross","Admin","Attend",0]
["Smith","Ross","Sales","Plan",1]
["Smith","Ross","Sales","Regis",1]
["Smith","Ross","Sales","Attend",0]
["Smith","Ross","Prod","Plan",1]
["Smith","Ross","Prod","Regis",1]
["Smith","Ross","Prod","Attend",0]
["Smith","Gonzales","Admin","Plan",1]
["Smith","Gonzales","Admin","Regis",1]
["Smith","Gonzales","Admin","Attend",1]
["Smith","Gonzales","Sales","Plan",0]
["Smith","Gonzales","Sales","Regis",0]
["Smith","Gonzales","Sales","Attend",0]
["Smith","Gonzales","Prod","Plan",1]
["Smith","Gonzales","Prod","Regis",1]
["Smith","Gonzales","Prod","Attend",0]
["Williams","Alexander","Admin","Plan",0]
["Williams","Alexander","Admin","Regis",0]
["Williams","Alexander","Admin","Attend",0]
["Williams","Alexander","Sales","Plan",0]
["Williams","Alexander","Sales","Regis",0]
["Williams","Alexander","Sales","Attend",0]
["Williams","Alexander","Prod","Plan",1]
["Williams","Alexander","Prod","Regis",1]
["Williams","Alexander","Prod","Attend",1]
["Williams","James","Admin","Plan",0]
["Williams","James","Admin","Regis",0]
["Williams","James","Admin","Attend",0]
["Williams","James","Sales","Plan",1]
["Williams","James","Sales","Regis",1]
["Williams","James","Sales","Attend",0]
["Williams","James","Prod","Plan",0]
["Williams","James","Prod","Regis",0]
["Williams","James","Prod","Attend",0]
["Williams","West","Admin","Plan",1]
["Williams","West","Admin","Regis",1]
["Williams","West","Admin","Attend",1]
["Williams","West","Sales","Plan",1]
["Williams","West","Sales","Regis",0]
["Williams","West","Sales","Attend",0]
["Williams","West","Prod","Plan",1]
["Williams","West","Prod","Regis",1]
["Williams","West","Prod","Attend",0]
["Williams","Diaz","Admin","Plan",0]
["Williams","Diaz","Admin","Regis",0]
["Williams","Diaz","Admin","Attend",0]
["Williams","Diaz","Sales","Plan",0]
["Williams","Diaz","Sales","Regis",0]
["Williams","Diaz","Sales","Attend",0]
["Williams","Diaz","Prod","Plan",0]
["Williams","Diaz","Prod","Regis",0]
["Williams","Diaz","Prod","Attend",0]
["Williams","Clark","Admin","Plan",1]
["Williams","Clark","Admin","Regis",0]
["Williams","Clark","Admin","Attend",0]
["Williams","Clark","Sales","Plan",0]
["Williams","Clark","Sales","Regis",0]
["Williams","Clark","Sales","Attend",0]
["Williams","Clark","Prod","Plan",1]
["Williams","Clark","Prod","Regis",1]
["Williams","Clark","Prod","Attend",1]
["Williams","Sullivan","Admin","Plan",1]
["Williams","Sullivan","Admin","Regis",1]
["Williams","Sullivan","Admin","Attend",0]
["Williams","Sullivan","Sales","Plan",1]
["Williams","Sullivan","Sales","Regis",0]
["Williams","Sullivan","Sales","Attend",0]
["Williams","Sullivan","Prod","Plan",0]
["Williams","Sullivan","Prod","Regis",0]
["Williams","Sullivan","Prod","Attend",0]
["Williams","Reed","Admin","Plan",0]
["Williams","Reed","Admin","Regis",0]
["Williams","Reed","Admin","Attend",0]
["Williams","Reed","Sales","Plan",0]
["Williams","Reed","Sales","Regis",0]
["Williams","Reed","Sales","Attend",0]
["Williams","Reed","Prod","Plan",1]
["Williams","Reed","Prod","Regis",1]
["Williams","Reed","Prod","Attend",0]
["Williams","Reynolds","Admin","Plan",1]
["Williams","Reynolds","Admin","Regis",1]
["Williams","Reynolds","Admin","Attend",1]
["Williams","Reynolds","Sales","Plan",1]
["Williams","Reynolds","Sales","Regis",1]
["Williams","Reynolds","Sales","Attend",0]
["Williams","Reynolds","Prod","Plan",0]
["Williams","Reynolds","Prod","Regis",0]
["Williams","Reynolds","Prod","Attend",0]
["Williams","Hunter","Admin","Plan",1]
["Williams","Hunter","Admin","Regis",1]
["Williams","Hunter","Admin","Attend",1]
["Williams","Hunter","Sales","Plan",1]
["Williams","Hunter","Sales","Regis",1]
["Williams","Hunter","Sales","Attend",1]
["Williams","Hunter","Prod","Plan",1]
["Williams","Hunter","Prod","Regis",1]
["Williams","Hunter","Prod","Attend",1]
["Williams","Hicks","Admin","Plan",1]
["Williams","Hicks","Admin","Regis",1]
["Williams","Hicks","Admin","Attend",1]
["Williams","Hicks","Sales","Plan",1]
["Williams","Hicks","Sales","Regis",0]
["Williams","Hicks","Sales","Attend",0]
["Williams","Hicks","Prod","Plan",1]
["Williams","Hicks","Prod","Regis",1]
["Williams","Hicks","Prod","Attend",1]
["Williams","Richardson","Admin","Plan",1]
["Williams","Richardson","Admin","Regis",1]
["Williams","Richardson","Admin","Attend",0]
["Williams","Richardson","Sales","Plan",0]
["Williams","Richardson","Sales","Regis",0]
["Williams","Richardson","Sales","Attend",0]
["Williams","Richardson","Prod","Plan",1]
["Williams","Richardson","Prod","Regis",1]
["Williams","Richardson","Prod","Attend",1]

{"sheet":"Data","index":1,"n_rows":47,"n_cols":13,"rows_kept":47,"cut":false,"hidden":false,"merged":[]}
[]
[]
[null,"PivotTable1",null,null,"Table1"]
[null,"Bin Array",null,null,"Bin1","Bin2","Bin3","Bin4","Bin5","Bin6","Bin7","Bin8","Bin9"]
[null,342,null,null,"Admin","Admin","Admin","Sales","Sales","Sales","Prod","Prod","Prod"]
[null,null,null,null,"Plan","Regis","Attend","Plan","Regis","Attend","Plan","Regis","Attend"]
[null,"Table2"]
[null,"Super","Emp","S&E","Bin1","Bin2","Bin3","Bin4","Bin5","Bin6","Bin7","Bin8","Bin9"]
[null,null,null,null,{"$f":"INDEX(Table1[Bin1],1)&\";\"&INDEX(Table1[Bin1],2)","v":"Admin;Plan"},{"$f":"INDEX(Table1[Bin2],1)&\";\"&INDEX(Table1[Bin2],2)","v":"Admin;Regis"},{"$f":"INDEX(Table1[Bin3],1)&\";\"&INDEX(Table1[Bin3],2)","v":"Admin;Attend"},{"$f":"INDEX(Table1[Bin4],1)&\";\"&INDEX(Table1[Bin4],2)","v":"Sales;Plan"},{"$f":"INDEX(Table1[Bin5],1)&\";\"&INDEX(Table1[Bin5],2)","v":"Sales;Regis"},{"$f":"INDEX(Table1[Bin6],1)&\";\"&INDEX(Table1[Bin6],2)","v":"Sales;Attend"},{"$f":"INDEX(Table1[Bin7],1)&\";\"&INDEX(Table1[Bin7],2)","v":"Prod;Plan"},{"$f":"INDEX(Table1[Bin8],1)&\";\"&INDEX(Table1[Bin8],2)","v":"Prod;Regis"},{"$f":"INDEX(Table1[Bin9],1)&\";\"&INDEX(Table1[Bin9],2)","v":"Prod;Attend"}]
[null,"Johnson","Diaz",{"$f":"[Super]&\";\"&[Emp]","v":"Johnson;Diaz"},1,1,1,0,0,0,1,1,0]
[null,"Johnson","Bryant",{"$f":"[Super]&\";\"&[Emp]","v":"Johnson;Bryant"},1,1,1,1,1,1,0,0,0]
[null,"Johnson","Harris",{"$f":"[Super]&\";\"&[Emp]","v":"Johnson;Harris"},1,1,0,1,0,0,1,1,0]
[null,"Johnson","Thomas",{"$f":"[Super]&\";\"&[Emp]","v":"Johnson;Thomas"},1,0,0,1,1,0,1,1,1]
[null,"Johnson","Hicks",{"$f":"[Super]&\";\"&[Emp]","v":"Johnson;Hicks"},0,0,0,1,1,0,1,1,0]
[null,"Johnson","Murray",{"$f":"[Super]&\";\"&[Emp]","v":"Johnson;Murray"},1,1,1,1,1,0,1,1,1]
[null,"Johnson","Foster",{"$f":"[Super]&\";\"&[Emp]","v":"Johnson;Foster"},1,0,0,0,0,0,1,1,1]
[null,"Johnson","Nelson",{"$f":"[Super]&\";\"&[Emp]","v":"Johnson;Nelson"},1,0,0,1,0,0,0,0,0]
[null,"Johnson","Porter",{"$f":"[Super]&\";\"&[Emp]","v":"Johnson;Porter"},1,1,1,0,0,0,1,1,0]
[null,"Johnson","Washington",{"$f":"[Super]&\";\"&[Emp]","v":"Johnson;Washington"},1,1,1,0,0,0,0,0,0]
[null,"Johnson","Parker",{"$f":"[Super]&\";\"&[Emp]","v":"Johnson;Parker"},1,1,1,1,1,0,1,0,0]
[null,"Johnson","Lopez",{"$f":"[Super]&\";\"&[Emp]","v":"Johnson;Lopez"},0,0,0,1,1,1,1,1,1]
[null,"Johnson","Roberts",{"$f":"[Super]&\";\"&[Emp]","v":"Johnson;Roberts"},1,1,0,1,0,0,1,1,1]
[null,"Johnson","Powell",{"$f":"[Super]&\";\"&[Emp]","v":"Johnson;Powell"},1,0,0,0,0,0,1,1,0]
[null,"Johnson","Mason",{"$f":"[Super]&\";\"&[Emp]","v":"Johnson;Mason"},0,0,0,1,0,0,1,1,0]
[null,"Smith","Gonzales",{"$f":"[Super]&\";\"&[Emp]","v":"Smith;Gonzales"},1,1,1,1,0,0,0,0,0]
[null,"Smith","Ward",{"$f":"[Super]&\";\"&[Emp]","v":"Smith;Ward"},1,0,0,1,1,0,1,1,0]
[null,"Smith","Mitchell",{"$f":"[Super]&\";\"&[Emp]","v":"Smith;Mitchell"},1,1,0,0,0,0,1,1,0]
[null,"Smith","Miller",{"$f":"[Super]&\";\"&[Emp]","v":"Smith;Miller"},1,0,0,0,0,0,1,1,0]
[null,"Smith","Carter",{"$f":"[Super]&\";\"&[Emp]","v":"Smith;Carter"},0,0,0,1,1,1,0,0,0]
[null,"Smith","Turner",{"$f":"[Super]&\";\"&[Emp]","v":"Smith;Turner"},1,1,0,0,0,0,0,0,0]
[null,"Smith","Porter",{"$f":"[Super]&\";\"&[Emp]","v":"Smith;Porter"},1,0,0,1,1,0,0,0,0]
[null,"Smith","Carter",{"$f":"[Super]&\";\"&[Emp]","v":"Smith;Carter"},1,1,1,1,1,1,1,1,1]
[null,"Smith","Boyd",{"$f":"[Super]&\";\"&[Emp]","v":"Smith;Boyd"},1,1,1,0,0,0,0,0,0]
[null,"Smith","Flores",{"$f":"[Super]&\";\"&[Emp]","v":"Smith;Flores"},1,1,1,0,0,0,1,1,0]
[null,"Smith","Ross",{"$f":"[Super]&\";\"&[Emp]","v":"Smith;Ross"},1,1,0,1,1,0,1,1,0]
[null,"Smith","Gonzales",{"$f":"[Super]&\";\"&[Emp]","v":"Smith;Gonzales"},1,1,1,0,0,0,1,1,0]
[null,"Williams","Alexander",{"$f":"[Super]&\";\"&[Emp]","v":"Williams;Alexander"},0,0,0,0,0,0,1,1,1]
[null,"Williams","James",{"$f":"[Super]&\";\"&[Emp]","v":"Williams;James"},0,0,0,1,1,0,0,0,0]
[null,"Williams","West",{"$f":"[Super]&\";\"&[Emp]","v":"Williams;West"},1,1,1,1,0,0,1,1,0]
[null,"Williams","Diaz",{"$f":"[Super]&\";\"&[Emp]","v":"Williams;Diaz"},0,0,0,0,0,0,0,0,0]
[null,"Williams","Clark",{"$f":"[Super]&\";\"&[Emp]","v":"Williams;Clark"},1,0,0,0,0,0,1,1,1]
[null,"Williams","Sullivan",{"$f":"[Super]&\";\"&[Emp]","v":"Williams;Sullivan"},1,1,0,1,0,0,0,0,0]
[null,"Williams","Reed",{"$f":"[Super]&\";\"&[Emp]","v":"Williams;Reed"},0,0,0,0,0,0,1,1,0]
[null,"Williams","Reynolds",{"$f":"[Super]&\";\"&[Emp]","v":"Williams;Reynolds"},1,1,1,1,1,0,0,0,0]
[null,"Williams","Hunter",{"$f":"[Super]&\";\"&[Emp]","v":"Williams;Hunter"},1,1,1,1,1,1,1,1,1]
[null,"Williams","Hicks",{"$f":"[Super]&\";\"&[Emp]","v":"Williams;Hicks"},1,1,1,1,0,0,1,1,1]
[null,"Williams","Richardson",{"$f":"[Super]&\";\"&[Emp]","v":"Williams;Richardson"},1,1,0,0,0,0,1,1,1]

{"sheet":"Summary","index":2,"n_rows":20,"n_cols":7,"rows_kept":20,"cut":false,"hidden":false,"merged":[]}
[]
[]
[]
[]
[]
[null,"PivotTable2"]
[null,"Sum of Count",null,"Super"]
[null,"Class","Status","Johnson","Smith","Williams","Grand Total"]
[null,"Admin",null,26,24,17,67]
[null,null,"Plan",12,11,7,30]
[null,null,"Regis",8,8,6,22]
[null,null,"Attend",6,5,4,15]
[null,"Prod",null,28,15,19,62]
[null,null,"Plan",12,7,7,26]
[null,null,"Regis",11,7,7,25]
[null,null,"Attend",5,1,5,11]
[null,"Sales",null,18,13,10,41]
[null,null,"Plan",10,6,6,22]
[null,null,"Regis",6,5,3,14]
[null,null,"Attend",2,2,1,5]